fUSD/lending_fUSD_20260512
["ID","MTS","AMOUNT","RATE_DAILY","PERIOD"]
[422054278,1778530242000,-602.0,0.00020987,5]
[422054289,1778530242000,-3628.0,0.00021855,2]
[422054283,1778530242000,-526.96,0.00021401,2]
[422054280,1778530242000,-1295.0,0.00021,2]
[422054286,1778530242000,-235.642712,0.00021844,2]
[422054282,1778530242000,-151.0,0.00021,2]
[422054281,1778530242000,-154.0,0.00021,2]
[422054288,1778530242000,-1263.782,0.00021855,2]
[422054277,1778530242000,-526.96,0.00020785,2]
[422054284,1778530242000,-1269.0,0.00021818,2]
[422054290,1778530242000,-150.0,0.000219,10]
[422054351,1778530243000,-526.0,0.00025,2]
[422054350,1778530243000,-3628.0,0.00024855,2]
[422054353,1778530243000,-1295.0,0.00025,2]
[422054349,1778530243000,-1223.0,0.00024855,2]
[422054352,1778530243000,-439.80524736,0.00025,2]
[422054355,1778530243000,-156.99,0.00025,7]
[422054359,1778530243000,-177.7,0.00025317,2]
[422054348,1778530243000,-249.018,0.00024818,2]
[422054356,1778530243000,-157.02,0.00025,7]
[422054360,1778530243000,-893.88784291,0.00025614,2]
[422054357,1778530243000,-248.39,0.00025079,2]
[422054354,1778530243000,-157.04,0.00025,7]
[422054361,1778530243000,-506.0,0.00025787,3]
[422054362,1778530243000,-1282.73,0.000258,7]
[422054363,1778530243000,-2410.71307599,0.000261,2]
[422054364,1778530243000,-947.311,0.0002656,13]
[422054366,1778530243000,-157.04431339,0.00026899,2]
[422054365,1778530243000,-150.0,0.00026849,2]
[422054347,1778530243000,-157.02,0.00024658,2]
[422054367,1778530243000,-150.0,0.00027,2]
[422054358,1778530243000,-1018.46,0.0002529,2]
[422054345,1778530243000,-151.0,0.00024658,2]
[422054329,1778530243000,-545.86190587,0.0002317,2]
[422054343,1778530243000,-153.91,0.00024658,2]
[422054368,1778530243000,-170.0,0.00027,7]
[422054323,1778530243000,-16343.07638698,0.00023,2]
[422054324,1778530243000,-1002.22900435,0.00023,2]
[422054327,1778530243000,-163.0,0.00023,2]
[422054328,1778530243000,-545.86190587,0.00023064,2]
[422054326,1778530243000,-154.0,0.00023,2]
[422054331,1778530243000,-526.96,0.00023862,2]
[422054333,1778530243000,-409.208765,0.00023881,14]
[422054330,1778530243000,-526.96,0.00023247,2]
[422054325,1778530243000,-1295.0,0.00023,2]
[422054332,1778530243000,-2500.0,0.00023862,2]
[422054334,1778530243000,-508.0,0.00024,2]
[422054338,1778530243000,-200.0,0.00024167,2]
[422054335,1778530243000,-1295.0,0.00024,2]
[422054336,1778530243000,-168.0,0.00024,2]
[422054337,1778530243000,-572.0,0.00024075,10]
[422054346,1778530243000,-156.99,0.00024658,2]
[422054340,1778530243000,-5000.0,0.00024349,2]
[422054339,1778530243000,-2410.71307599,0.00024233,2]
[422054342,1778530243000,-506.0,0.00024397,2]
[422054341,1778530243000,-500.0,0.00024352,2]
[422054344,1778530243000,-1000.0,0.00024658,2]
[422054369,1778530243000,-157.02,0.00027145,2]
[422054389,1778530243000,-1220.0,0.00027855,2]
[422054384,1778530243000,-2289.3,0.00027397,10]
[422054400,1778530243000,-3175.67275789,0.00029209,2]
[422054408,1778530243000,-506.0,0.00029958,7]
[422054397,1778530243000,-893.88784291,0.00029186,2]
[422054401,1778530243000,-2302.87148472,0.00029216,2]
[422054404,1778530243000,-150.0,0.00029601,2]
[422054405,1778530243000,-1000.0,0.00029759,15]
[422054402,1778530243000,-2000.0,0.000293,2]
[422054399,1778530243000,-3643.94226333,0.000292,2]
[422054403,1778530243000,-1000.0,0.00029525,15]
[422054414,1778530243000,-3616.989387,0.00030037,2]
[422054370,1778530243000,-157.02,0.00027145,7]
[422054417,1778530243000,-1208.4143356,0.00030037,2]
[422054410,1778530243000,-200.0,0.0003,2]
[422054411,1778530243000,-200.0,0.0003,2]
[422054419,1778530243000,-10286.0946103,0.00030037,2]
[422054413,1778530243000,-168.3111732,0.00030037,2]
[422054420,1778530243000,-2000.0,0.000301,2]
[422054416,1778530243000,-1658.9116468,0.00030037,2]
[422054412,1778530243000,-200.0,0.0003,2]
[422054421,1778530243000,-19476.0577087,0.0003013,7]
[422054415,1778530243000,-26975.6561775,0.00030037,2]
[422054409,1778530243000,-152.0,0.00029958,7]
[422054407,1778530243000,-2410.71307599,0.00029833,2]
[422054418,1778530243000,-30295.0096614,0.00030037,2]
[422054393,1778530243000,-341.007304,0.00028223,14]
[422054383,1778530243000,-506.0,0.00027177,4]
[422054382,1778530243000,-157.03,0.00027158,30]
[422054371,1778530243000,-157.02,0.00027145,30]
[422054379,1778530243000,-156.99,0.00027158,30]
[422054373,1778530243000,-157.02,0.00027145,2]
[422054376,1778530243000,-157.07,0.00027145,30]
[422054375,1778530243000,-157.02,0.00027145,7]
[422054377,1778530243000,-156.99,0.00027158,2]
[422054378,1778530243000,-156.99,0.00027158,7]
[422054398,1778530243000,-298.03892661,0.000292,2]
[422054380,1778530243000,-156.99,0.00027158,2]
[422054386,1778530243000,-1589.79,0.00027397,10]
[422054396,1778530243000,-506.0,0.00028567,6]
[422054387,1778530243000,-1324.83,0.00027397,10]
[422054388,1778530243000,-500.0,0.000278,7]
[422054385,1778530243000,-1907.75,0.00027397,10]
[422054391,1778530243000,-2410.71307599,0.00027967,2]
[422054392,1778530243000,-150.0,0.00028192,2]
[422054390,1778530243000,-3628.0,0.00027855,2]
[422054395,1778530243000,-2447.0,0.00028513,2]
[422054394,1778530243000,-500.0,0.00028486,60]
[422054381,1778530243000,-156.99,0.00027158,7]
[422054423,1778530244000,-648.32793,0.0003013,7]
[422054422,1778530244000,-506.3588208,0.0003013,7]
[422054427,1778530246000,-157.04,0.00027132,30]
[422054428,1778530246000,-76.32,0.00027132,2]
[422054426,1778530246000,-157.04,0.00027132,7]
[422054425,1778530246000,-157.04,0.00027132,2]
[422054459,1778530562000,4297.39,0.00027397,120]
[422054460,1778530686000,1153.766,0.00027397,120]
[422054461,1778530730000,492.562463,0.00026849,120]
[422054462,1778530772000,246.281231,0.00026185,120]
[422054463,1778530820000,393.012884,0.00023769,120]
[422054464,1778530861000,196.506442,0.00023769,120]
[422054465,1778530907000,461.260951,0.00023769,120]
[422054466,1778530947000,230.630476,0.00026185,120]
[422054467,1778531297000,183.08,0.00026096,120]
[422054484,1778531432000,-263.48,0.00012522,2]
[422054485,1778531432000,-263.48,0.00013097,2]
[422054487,1778531432000,-163.11,0.000137,2]
[422054491,1778531432000,-263.48,0.00014822,2]
[422054480,1778531432000,-263.48,0.00011947,2]
[422054489,1778531432000,-263.48,0.00014247,2]
[422054492,1778531432000,-270.00142481,0.0001501,2]
[422054488,1778531432000,-250.0,0.00014,2]
[422054490,1778531432000,-171.52,0.0001445,2]
[422054483,1778531432000,-250.0,0.00012508,2]
[422054482,1778531432000,-250.0,0.00012508,2]
[422054495,1778531432000,-150.0,0.00015352,2]
[422054481,1778531432000,-1680.0,0.00012508,2]
[422054477,1778531432000,-263.48,0.00011372,2]
[422054478,1778531432000,-30000.0,0.00011372,2]
[422054476,1778531432000,-250.0,0.00011372,2]
[422054474,1778531432000,-300.0,0.00011371,2]
[422054473,1778531432000,-300.0,0.00011371,2]
[422054479,1778531432000,-160.0,0.0001153,2]
[422054475,1778531432000,-1200.0,0.00011371,2]
[422054472,1778531432000,-855.06629437,0.000113,2]
[422054471,1778531432000,-270.00142483,0.00011272,2]
[422054486,1778531432000,-263.48,0.00013672,2]
[422054493,1778531432000,-208.15897961,0.00015032,2]
[422054508,1778531432000,-151.0,0.00016186,2]
[422054494,1778531432000,-164.2,0.00015249,2]
[422054504,1778531432000,-151.0,0.00016186,2]
[422054518,1778531432000,-151.0,0.00016186,2]
[422054515,1778531432000,-151.0,0.00016186,2]
[422054514,1778531432000,-500.0,0.00016186,2]
[422054516,1778531432000,-151.0,0.00016186,2]
[422054512,1778531432000,-151.0,0.00016186,2]
[422054513,1778531432000,-151.0,0.00016186,2]
[422054519,1778531432000,-151.0,0.00016186,2]
[422054507,1778531432000,-500.0,0.00016186,2]
[422054517,1778531432000,-500.0,0.00016186,2]
[422054509,1778531432000,-500.0,0.00016186,2]
[422054511,1778531432000,-500.0,0.00016186,2]
[422054510,1778531432000,-151.0,0.00016186,2]
[422054506,1778531432000,-151.0,0.00016186,2]
[422054505,1778531432000,-500.0,0.00016186,2]
[422054503,1778531432000,-284.32233892,0.00016186,2]
[422054500,1778531432000,-200.0,0.00016186,2]
[422054501,1778531432000,-500.0,0.00016186,2]
[422054496,1778531432000,-263.48,0.00015398,2]
[422054497,1778531432000,-263.48,0.00015973,2]
[422054502,1778531432000,-500.0,0.00016186,2]
[422054498,1778531432000,-300.0,0.00016,2]
[422054499,1778531432000,-173.0,0.00016186,2]
[422054566,1778531433000,-270.00142481,0.00018748,2]
[422054574,1778531433000,-414.76,0.00019391,2]
[422054568,1778531433000,-500.0,0.00018925,2]
[422054564,1778531433000,-497.3,0.0001841,2]
[422054565,1778531433000,-1029.44,0.0001869,2]
[422054567,1778531433000,-263.48,0.00018848,2]
[422054559,1778531433000,-150.0,0.00017764,2]
[422054563,1778531433000,-200.0,0.00018378,2]
[422054560,1778531433000,-200.0,0.0001783,2]
[422054558,1778531433000,-263.48,0.00017698,2]
[422054555,1778531433000,-263.48,0.00017123,2]
[422054570,1778531433000,-590.85758342,0.00019,2]
[422054562,1778531433000,-263.48,0.00018273,2]
[422054569,1778531433000,-200.0,0.00018926,2]
[422054582,1778531433000,-177.54,0.00019817,2]
[422054572,1778531433000,-590.85758342,0.000192,2]
[422054578,1778531433000,-1383.24,0.00019569,2]
[422054575,1778531433000,-590.85758342,0.000194,2]
[422054576,1778531433000,-263.48,0.00019423,2]
[422054577,1778531433000,-200.0,0.00019474,2]
[422054579,1778531433000,-590.85758342,0.000196,2]
[422054586,1778531433000,-154.0,0.0002,2]
[422054587,1778531433000,-151.0,0.0002,2]
[422054581,1778531433000,-590.85758342,0.000198,2]
[422054580,1778531433000,-477.49,0.00019757,2]
[422054561,1778531433000,-350.0,0.00018,2]
[422054583,1778531433000,-263.48,0.00019998,2]
[422054584,1778531433000,-508.0,0.0002,2]
[422054571,1778531433000,-164.2,0.00019061,2]
[422054552,1778531433000,-150.43,0.000167,2]
[422054538,1778531433000,-151.0,0.00016186,2]
[422054554,1778531433000,-200.0,0.00016734,2]
[422054520,1778531433000,-500.0,0.00016186,2]
[422054522,1778531433000,-151.0,0.00016186,2]
[422054523,1778531433000,-500.0,0.00016186,2]
[422054524,1778531433000,-151.0,0.00016186,2]
[422054525,1778531433000,-500.0,0.00016186,2]
[422054528,1778531433000,-151.0,0.00016186,2]
[422054526,1778531433000,-151.0,0.00016186,2]
[422054527,1778531433000,-500.0,0.00016186,2]
[422054532,1778531433000,-151.0,0.00016186,2]
[422054531,1778531433000,-500.0,0.00016186,2]
[422054535,1778531433000,-500.0,0.00016186,2]
[422054537,1778531433000,-500.0,0.00016186,2]
[422054547,1778531433000,-500.0,0.00016186,2]
[422054557,1778531433000,-200.0,0.00017282,2]
[422054549,1778531433000,-500.0,0.00016186,2]
[422054540,1778531433000,-500.0,0.00016186,2]
[422054543,1778531433000,-151.0,0.00016186,2]
[422054544,1778531433000,-500.0,0.00016186,2]
[422054585,1778531433000,-1295.0,0.0002,2]
[422054545,1778531433000,-500.0,0.00016186,2]
[422054542,1778531433000,-500.0,0.00016186,2]
[422054548,1778531433000,-500.0,0.00016186,2]
[422054546,1778531433000,-500.0,0.00016186,2]
[422054541,1778531433000,-151.0,0.00016186,2]
[422054550,1778531433000,-497.3,0.00016438,2]
[422054551,1778531433000,-263.48,0.00016548,2]
[422054556,1778531433000,-164.2,0.00017155,2]
[422054553,1778531433000,-175.42,0.00016712,2]
[422054539,1778531433000,-151.0,0.00016186,2]
[422054589,1778531433000,-477.49,0.00020031,2]
[422054573,1778531433000,-500.0,0.00019337,2]
[422054600,1778531433000,-1295.0,0.00021,2]
[422054623,1778531433000,-151.0,0.00021607,2]
[422054617,1778531433000,-152.0,0.00021497,2]
[422054624,1778531433000,-151.0,0.00021662,2]
[422054622,1778531433000,-187.83,0.00021553,2]
[422054627,1778531433000,-171.52,0.00021676,2]
[422054630,1778531433000,-263.48,0.00021723,2]
[422054629,1778531433000,-151.0,0.00021717,2]
[422054635,1778531433000,-151.0,0.00021992,2]
[422054636,1778531433000,-508.0,0.00022,2]
[422054638,1778531433000,-154.0,0.00022,2]
[422054634,1778531433000,-151.0,0.00021937,2]
[422054631,1778531433000,-151.0,0.00021772,2]
[422054628,1778531433000,-194.4,0.00021676,2]
[422054633,1778531433000,-151.0,0.00021882,2]
[422054632,1778531433000,-151.0,0.00021827,2]
[422054637,1778531433000,-1295.0,0.00022,2]
[422054640,1778531433000,-1383.24,0.00022015,2]
[422054639,1778531433000,-151.0,0.00022,2]
[422054641,1778531433000,-181.08010149,0.00022045,2]
[422054651,1778531433000,-508.0,0.00023,2]
[422054650,1778531433000,-164.2,0.00022873,2]
[422054642,1778531433000,-151.0,0.00022047,2]
[422054643,1778531433000,-187.83,0.00022054,2]
[422054644,1778531433000,-200.0,0.00022214,2]
[422054645,1778531433000,-263.48,0.00022298,2]
[422054646,1778531433000,-112.43574183,0.00022353,2]
[422054649,1778531433000,-200.0,0.00022762,2]
[422054647,1778531433000,-384.86425817,0.00022353,2]
[422054599,1778531433000,-508.0,0.00021,2]
[422054621,1778531433000,-151.0,0.00021552,2]
[422054619,1778531433000,-152.0,0.00021497,2]
[422054648,1778531433000,-187.78006525,0.00022593,2]
[422054626,1778531433000,-200.0,0.00021666,2]
[422054618,1778531433000,-152.0,0.00021497,2]
[422054588,1778531433000,-200.0,0.00020022,2]
[422054597,1778531433000,-459.28,0.00020579,2]
[422054595,1778531433000,-200.0,0.0002057,2]
[422054594,1778531433000,-187.83,0.0002055,2]
[422054590,1778531433000,-187.83,0.00020049,2]
[422054592,1778531433000,-477.49,0.00020305,2]
[422054598,1778531433000,-164.2,0.00020967,2]
[422054596,1778531433000,-263.48,0.00020573,2]
[422054593,1778531433000,-497.3,0.00020381,2]
[422054601,1778531433000,-154.0,0.00021,2]
[422054603,1778531433000,-187.83,0.00021052,2]
[422054602,1778531433000,-151.0,0.00021,2]
[422054605,1778531433000,-263.48,0.00021148,2]
[422054591,1778531433000,-2500.0,0.00020065,2]
[422054613,1778531433000,-152.0,0.00021497,2]
[422054604,1778531433000,-200.0,0.00021118,2]
[422054620,1778531433000,-151.0,0.00021497,2]
[422054616,1778531433000,-174.61919141,0.00021497,2]
[422054615,1778531433000,-152.0,0.00021497,2]
[422054614,1778531433000,-152.0,0.00021497,2]
[422054609,1778531433000,-152.0,0.00021497,2]
[422054625,1778531433000,-500.0,0.00021664,2]
[422054611,1778531433000,-152.0,0.00021497,2]
[422054606,1778531433000,-230.630476,0.00021233,2]
[422054608,1778531433000,-152.0,0.00021497,2]
[422054607,1778531433000,-504.33965857,0.00021497,2]
[422054612,1778531433000,-152.0,0.00021497,2]
[422054610,1778531433000,-152.0,0.00021497,2]
[422054691,1778531434000,-506.0,0.00024397,2]
[422054696,1778531434000,-167.54,0.00024658,2]
[422054697,1778531434000,-217.15233878,0.00024785,2]
[422054692,1778531434000,-1383.24,0.00024461,2]
[422054699,1778531434000,-526.0,0.00025,2]
[422054684,1778531434000,-1664.89733875,0.00024254,2]
[422054698,1778531434000,-168.88,0.00024848,2]
[422054688,1778531434000,-2067.0075186,0.00024254,2]
[422054690,1778531434000,-497.3,0.00024324,2]
[422054687,1778531434000,-344.1813772,0.00024254,2]
[422054686,1778531434000,-8062.8893028,0.00024254,2]
[422054689,1778531434000,-701.8131084,0.00024254,2]
[422054693,1778531434000,-153.91,0.00024658,2]
[422054704,1778531434000,-165.05,0.00025753,30]
[422054694,1778531434000,-1000.0,0.00024658,2]
[422054701,1778531434000,-165.05,0.00025205,7]
[422054711,1778531434000,-165.65,0.00026096,2]
[422054712,1778531434000,-3053.67,0.00026096,2]
[422054707,1778531434000,-506.0,0.00025787,3]
[422054700,1778531434000,-1295.0,0.00025,2]
[422054713,1778531434000,-200.0,0.00026096,2]
[422054702,1778531434000,-167.54,0.00025205,7]
[422054703,1778531434000,-225.18697532,0.00025333,2]
[422054709,1778531434000,-655.0,0.0002602,5]
[422054705,1778531434000,-167.54,0.00025753,30]
[422054706,1778531434000,-693.04,0.00025786,2]
[422054682,1778531434000,-209.40437684,0.00024237,2]
[422054708,1778531434000,-215.60051924,0.00025881,2]
[422054695,1778531434000,-165.05,0.00024658,2]
[422054683,1778531434000,-2571.5236526,0.00024254,2]
[422054677,1778531434000,-201.93286099,0.00023689,2]
[422054680,1778531434000,-168.0,0.00024,2]
[422054710,1778531434000,-150.0,0.00026096,2]
[422054654,1778531434000,-320.0,0.00023,30]
[422054653,1778531434000,-154.0,0.00023,2]
[422054652,1778531434000,-1295.0,0.00023,2]
[422054657,1778531434000,-519.4426,0.00023268,2]
[422054658,1778531434000,-51322.8651,0.00023268,2]
[422054663,1778531434000,-4999.99,0.00023368,2]
[422054655,1778531434000,-163.0,0.00023,2]
[422054661,1778531434000,-3540.0,0.00023365,2]
[422054659,1778531434000,-200.0,0.0002331,2]
[422054660,1778531434000,-1223.0,0.00023365,2]
[422054664,1778531434000,-4642.52,0.00023368,2]
[422054656,1778531434000,-194.72792766,0.00023141,2]
[422054681,1778531434000,-693.04,0.00024174,2]
[422054662,1778531434000,-1263.782,0.00023365,2]
[422054667,1778531434000,-299.99,0.00023368,7]
[422054678,1778531434000,-508.0,0.00024,2]
[422054669,1778531434000,-7630.9,0.00023368,2]
[422054666,1778531434000,-850.4,0.00023368,2]
[422054671,1778531434000,-999.99,0.00023368,2]
[422054670,1778531434000,-4135.36,0.00023368,2]
[422054675,1778531434000,-2577.48,0.00023368,2]
[422054668,1778531434000,-3010.44,0.00023368,2]
[422054672,1778531434000,-8240.37916479,0.00023368,2]
[422054674,1778531434000,-3478.96,0.00023368,2]
[422054673,1778531434000,-1759.61083521,0.00023368,2]
[422054676,1778531434000,-2060.25,0.00023368,2]
[422054679,1778531434000,-1295.0,0.00024,2]
[422054665,1778531434000,-150.99,0.00023368,2]
[422054716,1778531434000,-2369.68886177,0.00026201,2]
[422054685,1778531434000,-7996.17008665,0.00024254,2]
[422054717,1778531434000,-500.0,0.00026229,30]
[422054749,1778531434000,-150.0,0.00027025,4]
[422054752,1778531434000,-150.0,0.00027025,4]
[422054743,1778531434000,-160.0,0.00027,7]
[422054746,1778531434000,-151.10219896,0.00027025,4]
[422054747,1778531434000,-150.0,0.00027025,4]
[422054755,1778531434000,-200.53352621,0.00027132,2]
[422054765,1778531434000,-818.0,0.00027437,10]
[422054764,1778531434000,-494.0,0.00027437,10]
[422054757,1778531434000,-506.0,0.00027177,4]
[422054754,1778531434000,-151.0,0.00027132,2]
[422054760,1778531434000,-1104.02,0.00027397,10]
[422054761,1778531434000,-2105.3,0.00027397,10]
[422054759,1778531434000,-947.311,0.00027397,16]
[422054756,1778531434000,-2369.68886176,0.00027168,2]
[422054766,1778531434000,-500.0,0.000278,7]
[422054767,1778531434000,-503.72057383,0.00027947,2]
[422054758,1778531434000,-177.54,0.00027214,2]
[422054763,1778531434000,-281.0,0.00027437,10]
[422054762,1778531434000,-1754.41,0.00027397,10]
[422054768,1778531434000,-994.43889963,0.00028134,2]
[422054774,1778531434000,-717.14703944,0.00028367,2]
[422054776,1778531434000,-551.01620257,0.000284,2]
[422054777,1778531434000,-500.0,0.00028486,60]
[422054770,1778531434000,-150.0,0.00028192,2]
[422054772,1778531434000,-551.01620257,0.00028287,2]
[422054775,1778531434000,-727.3194187,0.00028375,2]
[422054771,1778531434000,-497.3,0.00028267,2]
[422054773,1778531434000,-551.01620257,0.00028296,2]
[422054714,1778531434000,-500.0,0.00026096,2]
[422054748,1778531434000,-150.0,0.00027025,4]
[422054753,1778531434000,-150.0,0.00027025,4]
[422054769,1778531434000,-1375.24996213,0.00028134,2]
[422054751,1778531434000,-150.0,0.00027025,4]
[422054750,1778531434000,-150.00000001,0.00027025,4]
[422054721,1778531434000,-497.3,0.00026296,2]
[422054715,1778531434000,-1029.44,0.00026166,2]
[422054725,1778531434000,-1223.0,0.00026365,2]
[422054720,1778531434000,-890.047,0.00026229,30]
[422054722,1778531434000,-164.12,0.00026301,2]
[422054726,1778531434000,-1018.46,0.00026365,2]
[422054719,1778531434000,-500.0,0.00026229,30]
[422054724,1778531434000,-167.54,0.00026301,2]
[422054728,1778531434000,-500.0,0.00026503,30]
[422054739,1778531434000,-5000.0,0.00026719,2]
[422054727,1778531434000,-500.0,0.00026503,30]
[422054738,1778531434000,-165.07,0.00026601,2]
[422054740,1778531434000,-150.0,0.00026849,2]
[422054723,1778531434000,-165.05,0.00026301,2]
[422054729,1778531434000,-500.0,0.00026503,30]
[422054745,1778531434000,-150.49474749,0.00027025,4]
[422054731,1778531434000,-167.54,0.00026556,2]
[422054778,1778531434000,-506.0,0.00028567,6]
[422054744,1778531434000,-150.0,0.00027025,4]
[422054742,1778531434000,-1383.24,0.00026907,2]
[422054741,1778531434000,-168.27,0.00026879,2]
[422054733,1778531434000,-167.54,0.00026568,30]
[422054718,1778531434000,-500.0,0.00026229,30]
[422054736,1778531434000,-165.05,0.00026601,7]
[422054735,1778531434000,-165.05,0.00026601,2]
[422054732,1778531434000,-167.54,0.00026562,7]
[422054734,1778531434000,-167.57,0.00026575,2]
[422054730,1778531434000,-500.0,0.00026503,30]
[422054737,1778531434000,-165.05,0.00026601,30]
[422054820,1778531435000,-500.0,0.00029999,2]
[422054807,1778531435000,-500.0,0.00029999,2]
[422054805,1778531435000,-3175.6727579,0.00029967,2]
[422054804,1778531435000,-298.03892662,0.00029967,2]
[422054803,1778531435000,-208.6780413,0.00029967,2]
[422054813,1778531435000,-500.0,0.00029999,2]
[422054806,1778531435000,-500.0,0.00029999,2]
[422054808,1778531435000,-500.0,0.00029999,2]
[422054809,1778531435000,-500.0,0.00029999,2]
[422054810,1778531435000,-500.0,0.00029999,2]
[422054812,1778531435000,-500.0,0.00029999,2]
[422054814,1778531435000,-500.0,0.00029999,2]
[422054802,1778531435000,-198.20883558,0.00029967,5]
[422054816,1778531435000,-500.0,0.00029999,2]
[422054826,1778531435000,-500.0,0.00029999,2]
[422054817,1778531435000,-150.0,0.00029999,2]
[422054821,1778531435000,-500.0,0.00029999,2]
[422054827,1778531435000,-500.0,0.00029999,2]
[422054818,1778531435000,-500.0,0.00029999,2]
[422054819,1778531435000,-500.0,0.00029999,2]
[422054811,1778531435000,-500.0,0.00029999,2]
[422054815,1778531435000,-500.0,0.00029999,2]
[422054789,1778531435000,-2000.0,0.000294,2]
[422054798,1778531435000,-198.4842305,0.0002993,2]
[422054822,1778531435000,-385.0,0.00029999,2]
[422054779,1778531435000,-551.01620257,0.00028631,2]
[422054781,1778531435000,-717.14703944,0.00028845,2]
[422054792,1778531435000,-7900.0,0.000297,10]
[422054791,1778531435000,-150.0,0.00029601,2]
[422054783,1778531435000,-1000.0,0.00028927,15]
[422054782,1778531435000,-503.72057383,0.0002888,2]
[422054780,1778531435000,-160.0,0.00028767,14]
[422054785,1778531435000,-551.01620257,0.00029194,2]
[422054797,1778531435000,-15900.0,0.000299,10]
[422054786,1778531435000,-2302.87148472,0.00029216,2]
[422054787,1778531435000,-1383.24,0.00029353,2]
[422054788,1778531435000,-1220.0,0.00029365,2]
[422054790,1778531435000,-3900.0,0.000296,10]
[422054793,1778531435000,-1000.0,0.00029759,15]
[422054795,1778531435000,-1247.82977324,0.0002983,2]
[422054800,1778531435000,-5000.0,0.0002993,2]
[422054801,1778531435000,-506.0,0.00029958,7]
[422054796,1778531435000,-782.15186259,0.0002983,2]
[422054794,1778531435000,-11900.0,0.000298,10]
[422054784,1778531435000,-2369.68886176,0.00029101,2]
[422054824,1778531435000,-500.0,0.00029999,2]
[422054799,1778531435000,-2500.0,0.0002993,2]
[422054825,1778531435000,-500.0,0.00029999,2]
[422054849,1778531435000,-500.0,0.00029999,2]
[422054853,1778531435000,-150.0,0.0003,10]
[422054856,1778531435000,-200.0,0.0003,2]
[422054855,1778531435000,-200.0,0.0003,2]
[422054857,1778531435000,-150.0,0.00030027,7]
[422054858,1778531435000,-150.0,0.00030027,7]
[422054859,1778531435000,-500.0,0.00030029,120]
[422054854,1778531435000,-200.0,0.0003,2]
[422054863,1778531435000,-500.0,0.00030029,120]
[422054845,1778531435000,-500.0,0.00029999,2]
[422054860,1778531435000,-500.0,0.00030029,120]
[422054865,1778531435000,-168.66164474,0.00030029,120]
[422054864,1778531435000,-500.0,0.00030029,120]
[422054861,1778531435000,-500.0,0.00030029,120]
[422054866,1778531435000,-500.0,0.00030029,2]
[422054870,1778531435000,-150.0,0.0003003,2]
[422054871,1778531435000,-250.0,0.0003003,30]
[422054868,1778531435000,-150.43937878,0.0003003,2]
[422054869,1778531435000,-150.0,0.0003003,2]
[422054873,1778531435000,-14246.35796139,0.0003003,2]
[422054862,1778531435000,-500.0,0.00030029,120]
[422054846,1778531435000,-500.0,0.00029999,2]
[422054867,1778531435000,-500.0,0.00030029,2]
[422054847,1778531435000,-500.0,0.00029999,2]
[422054848,1778531435000,-476.62339452,0.00029999,2]
[422054834,1778531435000,-500.0,0.00029999,2]
[422054832,1778531435000,-500.0,0.00029999,2]
[422054831,1778531435000,-500.0,0.00029999,2]